bitfinex-derivatives/quotes_SOLF0:USTF0_20230105
["timestamp","ask_amount","ask_price","bid_price","bid_amount"]
[1672935316441,0.0705249,13.295,13.286,10.06276228]
[1672935316651,10.0705249,13.295,13.286,10.06276228]
[1672935318120,0.0705249,13.295,13.286,10.06276228]
[1672935319386,10.0705249,13.295,13.286,10.06276228]
[1672935320008,10.0705249,13.295,13.286,0.06276228]
[1672935324536,0.0705249,13.295,13.286,10.06276228]
[1672935324851,10.0705249,13.295,13.286,10.06276228]
[1672935325587,10.0705249,13.295,13.286,0.06276228]
[1672935327377,0.0705249,13.295,13.286,10.06276228]
[1672935328533,10.0705249,13.295,13.286,10.06276228]
[1672935328744,0.0705249,13.295,13.286,10.06276228]
[1672935329371,10.0705249,13.295,13.286,10.06276228]
[1672935329581,0.0705249,13.295,13.286,10.06276228]
[1672935332531,10.0705249,13.295,13.286,0.06276228]
[1672935342196,47.6925249,13.295,13.286,0.06276228]
[1672935343039,10.0705249,13.295,13.286,0.06276228]
[1672935344298,47.6925249,13.295,13.286,0.06276228]
[1672935344928,10.0705249,13.295,13.286,0.06276228]
[1672935346297,47.6935249,13.295,13.286,0.06276228]
[1672935346721,14.99,13.293,13.286,0.06276228]
[1672935347031,14.99,13.293,13.279,50.0]
[1672935347032,15.05,13.289,13.279,14.98]
[1672935347453,85.22,13.288,13.279,14.98]
[1672935347662,10.0,13.287,13.279,14.98]
[1672935349026,10.0710066,13.288,13.279,14.98]
[1672935349347,0.0710066,13.288,13.281,15.05]
[1672935349660,0.0710066,13.288,13.282,10.0]
[1672935349868,0.0710066,13.288,13.281,15.05]
[1672935353441,75.2910066,13.288,13.281,15.05]
[1672935353652,10.0,13.287,13.281,15.05]
[1672935354701,85.22,13.287,13.281,15.05]
[1672935355858,10.0,13.287,13.281,15.05]
[1672935356908,10.0,13.287,13.279,15.05]
[1672935357324,85.22,13.287,13.278,15.09047076]
[1672935359747,85.22,13.287,13.28,15.05]
[1672935359957,75.22,13.286,13.28,15.05]
[1672935360167,10.0,13.285,13.28,15.05]
[1672935360901,75.22,13.286,13.28,15.05]
[1672935361217,75.22,13.285,13.28,15.05]
[1672935362268,10.0,13.284,13.28,15.05]
[1672935363212,10.0,13.287,13.28,15.05]
[1672935363845,85.22,13.287,13.28,15.05]
[1672935364263,75.22,13.287,13.285,15.05]
[1672935364476,0.0710066,13.288,13.286,10.0]
[1672935364680,0.06522202,13.292,13.286,10.0]
[1672935364892,10.06522202,13.292,13.286,10.0]
[1672935365101,10.06522202,13.292,13.285,15.05]
[1672935369728,0.06522202,13.292,13.285,15.05]
[1672935371092,0.06522202,13.292,13.286,10.0]
[1672935371302,0.06522202,13.292,13.286,17.49]
[1672935374033,0.06522202,13.292,13.286,7.49]
[1672935379498,0.06522202,13.292,13.289,7.53]
[1672935379709,0.06805165,13.295,13.29,7.45]
[1672935380019,0.06805165,13.295,13.291,10.0]
[1672935380336,75.28805165,13.295,13.291,10.0]
[1672935381388,0.06805165,13.295,13.292,7.53]
[1672935381598,0.06723828,13.298,13.293,10.0]
[1672935381808,10.06837614,13.3,13.293,10.0]
[1672935382754,10.06837614,13.3,13.292,7.53]
[1672935391578,75.22,13.299,13.292,7.53]
[1672935391788,10.0,13.298,13.292,7.53]
[1672935394310,85.22,13.298,13.292,7.53]
[1672935395365,75.22,13.297,13.292,7.53]
[1672935395578,10.0,13.296,13.292,7.53]
[1672935396100,75.22,13.297,13.292,7.53]
[1672935397047,10.06837614,13.3,13.292,7.53]
[1672935410496,47.67637614,13.3,13.292,7.53]
[1672935410710,75.22,13.299,13.292,7.53]
[1672935411024,10.0,13.298,13.292,7.53]
[1672935411866,75.22,13.297,13.292,7.53]
[1672935412176,0.06837614,13.3,13.296,7.49]
[1672935412496,0.06837614,13.3,13.299,7.48]
[1672935412706,0.06279373,13.304,13.299,7.48]
[1672935412915,0.06420724,13.306,13.301,7.48]
[1672935413229,10.06155861,13.308,13.301,7.48]
[1672935413966,17.59155861,13.308,13.299,7.53302062]
[1672935416488,10.06155861,13.308,13.301,7.53]
[1672935419533,7.53,13.31,13.302,10.0]
[1672935419744,10.0,13.309,13.302,10.0]
[1672935420900,17.53,13.31,13.302,10.0]
[1672935421112,10.0,13.31,13.303,7.48]
[1672935421630,10.0,13.312,13.304,10.0]
[1672935421845,7.53,13.311,13.304,10.0]
[1672935422478,10.0,13.312,13.304,17.53]
[1672935422684,7.53,13.313,13.305,10.0]
[1672935423000,10.0,13.312,13.305,10.0]
[1672935424361,7.53,13.313,13.305,10.0]
[1672935424574,10.0,13.312,13.305,10.0]
[1672935425843,17.59050926,13.313,13.305,10.0]
[1672935427624,7.53,13.313,13.305,10.0]
[1672935428678,10.0,13.312,13.304,17.59739202]
[1672935428888,10.0,13.312,13.304,7.59739202]
[1672935430882,7.53,13.306,13.302,50.0]
[1672935431087,7.53,13.304,13.302,50.0]
[1672935432457,7.53,13.304,13.298,0.07003297]
[1672935433193,10.0,13.303,13.298,0.07003297]
[1672935433399,10.0,13.303,13.302,50.0]
[1672935433615,10.0,13.303,13.298,0.07003297]
[1672935434769,7.53,13.304,13.299,10.0]
[1672935434979,10.0,13.303,13.299,10.0]
[1672935435191,10.0,13.303,13.3,37.608]
[1672935435822,7.53,13.304,13.3,37.608]
[1672935447694,10.0,13.303,13.298,0.07003297]
[1672935448014,7.53,13.3,13.298,0.07003297]
[1672935448223,10.0,13.299,13.294,0.06704498]
[1672935448958,10.0,13.299,13.295,37.62]
[1672935450847,47.611,13.299,13.295,37.62]
[1672935455996,37.611,13.299,13.295,37.62]
[1672935457363,10.0,13.298,13.295,37.62]
[1672935457572,47.614,13.298,13.295,37.62]
[1672935459779,10.0,13.298,13.295,37.62]
[1672935461882,47.613,13.298,13.295,37.62]
[1672935463979,7.53,13.297,13.294,0.06704498]
[1672935464195,47.619,13.296,13.288,7.45]
[1672935464509,10.0,13.295,13.29,37.635]
[1672935465348,47.623,13.295,13.29,37.635]
[1672935479215,47.623,13.295,13.288,0.06888453]
[1672935479216,7.53,13.291,13.282,7.45]
[1672935479425,37.641,13.289,13.282,7.45]
[1672935479739,10.0,13.288,13.282,7.45]
[1672935480362,47.644,13.288,13.282,7.45]
[1672935480790,47.644,13.288,13.281,7.53]
[1672935481107,55.174,13.288,13.28,0.06849304]
[1672935481420,7.53,13.286,13.28,0.06849304]
[1672935481621,47.652,13.285,13.28,0.06849304]
[1672935481836,10.0,13.284,13.28,0.06849304]
[1672935482255,47.655,13.284,13.28,0.06849304]
[1672935482678,10.0,13.284,13.28,0.06849304]
[1672935482892,10.0,13.285,13.28,0.06849304]
[1672935483209,0.06142706,13.287,13.28,0.06849304]
[1672935484257,37.649,13.286,13.28,0.06849304]
[1672935484466,10.0,13.285,13.28,0.06849304]
[1672935486782,10.0,13.286,13.28,0.06849304]
[1672935486984,10.0,13.286,13.281,7.45]
[1672935489726,47.647,13.286,13.281,7.45]
[1672935490884,47.647,13.286,13.28,0.06849304]
[1672935491094,122.942,13.286,13.28,0.06849304]
[1672935492251,7.53,13.285,13.28,0.06849304]
[1672935492460,47.654,13.284,13.28,0.06849304]
[1672935492671,10.0,13.283,13.28,0.06849304]
[1672935492878,10.0,13.283,13.276,7.45]
[1672935492879,10.0,13.283,13.277,0.06658935]
[1672935496557,47.656,13.283,13.277,0.06658935]
[1672935498449,37.661,13.282,13.277,0.06658935]
[1672935498660,10.0,13.281,13.277,0.06658935]
[1672935499708,10.0,13.281,13.277,0.00658935]
[1672935499709,7.53,13.279,13.277,0.00658935]
[1672935500027,10.0,13.278,13.27,7.49]
[1672935500237,47.67,13.278,13.27,7.49]
[1672935502339,10.0,13.278,13.272,7.49]
[1672935502754,47.67,13.278,13.272,7.49]
[1672935503387,10.0,13.278,13.272,7.49]
[1672935506642,47.671,13.278,13.27,7.48]
[1672935509268,7.53,13.277,13.269,0.06810426]
[1672935509480,45.21,13.275,13.269,0.06810426]
[1672935509795,10.0,13.274,13.269,0.06810426]
[1672935510006,47.682,13.274,13.269,0.06810426]
[1672935515256,10.0,13.274,13.269,0.06810426]
[1672935516415,47.681,13.274,13.269,0.06810426]
[1672935519565,10.0,13.274,13.269,0.06810426]
[1672935521037,47.683,13.274,13.269,0.06810426]
[1672935522719,7.53,13.272,13.269,0.00810426]
[1672935522934,7.53,13.27,13.261,7.49]
[1672935523142,10.0,13.269,13.261,7.49]
[1672935523565,37.699,13.268,13.261,7.49]
[1672935523776,10.0,13.267,13.261,7.49]
[1672935523983,10.06875209,13.269,13.263,7.48]
[1672935524197,10.06875209,13.269,13.264,10.0]
[1672935525667,10.06875209,13.269,13.263,7.48]
[1672935527456,7.53,13.268,13.26,7.56009595]
[1672935527664,10.0,13.267,13.26,7.56009595]
[1672935527878,47.703,13.267,13.26,7.56009595]
[1672935528928,7.53,13.268,13.26,7.56009595]
[1672935529138,7.53,13.268,13.261,10.0]
[1672935529350,0.06875209,13.269,13.262,7.47]
[1672935529661,0.06875209,13.269,13.263,10.0]
[1672935529975,0.06875209,13.269,13.264,7.48]
[1672935530293,0.06875209,13.269,13.266,7.53]
[1672935530498,10.07056387,13.272,13.266,7.53]
[1672935532188,47.75756387,13.272,13.264,7.49]
[1672935532389,10.07056387,13.272,13.264,7.49]
[1672935533964,0.07056387,13.272,13.266,7.47]
[1672935542692,37.75856387,13.272,13.266,7.47]
[1672935543956,0.07056387,13.272,13.266,7.47]
[1672935544589,37.75756387,13.272,13.266,7.47]
[1672935545950,0.07056387,13.272,13.266,7.47]
[1672935557930,0.07056387,13.272,13.267,7.45]
[1672935562656,0.07056387,13.272,13.264,7.47]
[1672935563287,10.07056387,13.272,13.264,7.47]
[1672935564336,47.75856387,13.272,13.264,7.47]
[1672935565279,7.53,13.271,13.263,7.55227748]
[1672935565494,45.227,13.269,13.263,0.06227748]
[1672935565911,10.0,13.268,13.263,0.06227748]
[1672935566121,37.703,13.267,13.263,0.06227748]
[1672935566332,10.0,13.266,13.263,0.06227748]
[1672935566542,10.0,13.266,13.261,7.47]
[1672935568229,47.704,13.266,13.261,7.47]
[1672935570642,10.0,13.266,13.261,7.47]
[1672935571907,10.0,13.268,13.261,7.47]
[1672935572214,0.06562685,13.269,13.263,7.45]
[1672935572849,0.06562685,13.269,13.264,7.47]
[1672935582417,0.06562685,13.269,13.262,7.53]
[1672935583356,37.76162685,13.269,13.262,7.53]
[1672935583567,10.0,13.268,13.262,7.53]
[1672935587560,0.06562685,13.269,13.262,7.53]
[1672935587778,0.06562685,13.269,13.264,7.48]
[1672935595660,0.06562685,13.269,13.262,7.53]
[1672935595974,37.76162685,13.269,13.262,7.53]
[1672935596601,10.0,13.268,13.262,7.53]
[1672935596811,37.703,13.267,13.26,7.55142923]
[1672935597131,10.0,13.266,13.26,7.55142923]
[1672935598076,47.704,13.266,13.26,7.55142923]
[1672935598706,55.234,13.266,13.26,0.06142923]
[1672935599753,55.234,13.266,13.26,0.00142923]
[1672935599754,7.53,13.264,13.26,0.00142923]
[1672935599964,10.0,13.261,13.26,0.00142923]
[1672935600176,10.0,13.261,13.253,7.45]
[1672935601438,17.53,13.261,13.252,7.59184316]
[1672935602381,10.0,13.261,13.253,17.45]
[1672935602593,17.59132233,13.262,13.253,17.45]
[1672935602801,10.06132233,13.262,13.255,7.53]
[1672935603009,10.06132233,13.262,13.256,10.0]
[1672935603537,0.06132233,13.262,13.256,10.0]
[1672935603747,2.233e-05,13.262,13.26,7.47]
[1672935603954,7.53,13.271,13.261,7.45]
[1672935604168,10.0,13.268,13.261,7.45]
[1672935605534,0.06786904,13.269,13.264,7.47]
[1672935608682,37.76386904,13.269,13.264,7.47]
[1672935608898,10.0,13.268,13.264,7.47]
[1672935611106,47.699,13.268,13.264,7.47]
[1672935611316,55.229,13.268,13.26,7.59967656]
[1672935611528,7.53,13.267,13.26,0.06967656]
[1672935611736,10.0,13.266,13.26,0.06967656]
[1672935612262,47.704,13.266,13.26,0.06967656]
[1672935612890,7.53,13.265,13.26,0.00967656]
[1672935613101,10.0,13.264,13.26,0.00967656]
[1672935614051,7.53,13.265,13.26,0.00967656]
[1672935615626,47.706,13.266,13.26,0.00967656]
[1672935620457,10.0,13.266,13.26,0.00967656]
[1672935621929,47.704,13.266,13.26,0.00967656]
[1672935624870,15.05,13.265,13.26,0.00967656]
[1672935625084,10.0,13.264,13.26,0.00967656]
[1672935626876,47.711,13.264,13.26,0.00967656]
[1672935630336,37.711,13.264,13.26,0.00967656]
[1672935630552,52.759,13.265,13.26,0.00967656]
[1672935631290,10.0,13.264,13.26,0.00967656]
[1672935634862,47.711,13.264,13.26,0.00967656]
[1672935635710,10.0,13.264,13.26,0.00967656]
[1672935637907,47.711,13.264,13.26,0.00967656]
[1672935638119,15.05,13.261,13.248,15.12]
[1672935638441,15.05,13.259,13.249,10.0]
[1672935638653,47.729,13.258,13.249,10.0]
[1672935638859,10.0,13.26,13.25,15.09]
[1672935639069,10.06151382,13.26,13.251,10.0]
[1672935639278,10.06151382,13.26,13.252,15.09]
[1672935639490,10.06151382,13.26,13.253,10.0]
[1672935641800,10.06151382,13.26,13.25,0.06842697]
[1672935642011,10.06151382,13.26,13.25,15.18842697]
[1672935642327,47.78251382,13.26,13.25,15.18842697]
[1672935642539,10.0,13.258,13.25,0.06842697]
[1672935642955,47.73,13.258,13.25,0.06842697]
[1672935643160,15.05,13.257,13.25,0.06842697]
[1672935643374,10.0,13.256,13.25,0.06842697]
[1672935644007,37.735,13.255,13.25,0.06842697]
[1672935644220,10.0,13.254,13.25,0.06842697]
[1672935644850,10.0,13.252,13.243,15.12]
[1672935645060,10.0,13.252,13.244,10.0]
[1672935645794,10.0,13.252,13.246,10.0]
[1672935645999,0.07026093,13.253,13.246,10.0]
[1672935648210,0.07026093,13.253,13.245,15.09]
[1672935648425,15.05,13.252,13.247,2.77256925]
[1672935648631,10.0,13.251,13.247,2.77256925]
[1672935648840,10.0,13.251,13.243,0.06309523]
[1672935649052,10.0,13.251,13.243,15.15309523]
[1672935649364,10.0,13.251,13.244,20.35256925]
[1672935649679,7.65026093,13.253,13.244,20.35256925]
[1672935649890,7.65026093,13.253,13.245,2.77256925]
[1672935650829,0.07026093,13.253,13.246,7.58]
[1672935651153,0.07026093,13.253,13.247,10.0]
[1672935653569,0.07026093,13.253,13.246,7.58]
[1672935653880,37.81126093,13.253,13.246,7.58]
[1672935654096,10.0,13.252,13.246,7.58]
[1672935654515,47.744,13.252,13.246,7.58]
[1672935654830,47.744,13.252,13.244,17.58]
[1672935655147,47.744,13.252,13.244,7.58]
[1672935656933,10.0,13.252,13.244,7.58]
[1672935658927,47.746,13.252,13.245,2.77259899]
[1672935666593,10.0,13.252,13.245,2.77259899]
[1672935667963,47.744,13.252,13.245,2.77259899]
[1672935668279,7.58,13.249,13.245,2.77259899]
[1672935668486,10.0,13.248,13.245,2.77259899]
[1672935668698,10.0,13.248,13.243,0.06309523]
[1672935669435,7.58,13.246,13.242,0.00569422]
[1672935669751,7.55,13.244,13.236,7.58]
[1672935669961,17.58,13.243,13.234,7.52]
[1672935670168,10.0,13.242,13.237,2.77439851]
[1672935670585,7.65126077,13.244,13.236,2.77439851]
[1672935670801,0.07126077,13.244,13.239,7.58]
[1672935671011,0.07126077,13.244,13.24,10.0]
[1672935671851,0.07126077,13.244,13.239,7.58]
[1672935672062,0.07126077,13.244,13.237,7.58]
[1672935672379,0.07126077,13.244,13.238,2.77429267]
[1672935672798,0.07126077,13.244,13.237,7.58]
[1672935673008,37.83826077,13.244,13.237,7.58]
[1672935673220,10.0,13.243,13.236,7.58]
[1672935673536,7.55,13.242,13.235,0.06619031]
[1672935673745,10.0,13.241,13.235,0.06619031]
[1672935675320,7.58,13.236,13.222,7.56]
[1672935675529,10.0,13.241,13.22,7.58]
[1672935675530,7.55,13.229,13.22,7.58]
[1672935675839,7.58,13.231,13.223,10.0]
[1672935676583,10.0,13.231,13.223,17.56]
[1672935677109,10.0,13.231,13.225,7.58]
[1672935678159,0.07078759,13.232,13.225,7.58]
[1672935678368,0.07078759,13.232,13.226,10.0]
[1672935678573,0.07078759,13.232,13.227,7.58]
[1672935678892,0.07078759,13.232,13.228,10.0]
[1672935680884,0.07078759,13.232,13.23,10.0]
[1672935681092,0.06696881,13.236,13.23,10.0]
[1672935681939,0.06696881,13.236,13.231,7.58]
[1672935682149,0.06696881,13.236,13.235,10.0]
[1672935682361,10.06752658,13.24,13.235,10.0]
[1672935682570,0.06752658,13.24,13.235,10.0]
[1672935682782,10.06752658,13.24,13.235,10.0]
[1672935682991,0.06752658,13.24,13.235,10.0]
[1672935683202,10.0,13.239,13.231,15.0855555]
[1672935683412,10.0,13.239,13.232,10.0]
[1672935684676,15.05,13.238,13.231,0.0655555]
[1672935684886,10.0,13.237,13.231,0.0655555]
[1672935685198,15.01,13.235,13.231,0.0655555]
[1672935685404,15.05,13.233,13.231,0.0055555]
[1672935685726,15.05,13.233,13.223,15.05]
[1672935685936,10.0,13.232,13.224,10.0]
[1672935687406,47.802,13.232,13.223,15.11571602]
[1672935687724,62.712,13.232,13.223,0.06571602]
[1672935687930,15.05,13.23,13.223,0.06571602]
[1672935688144,15.01,13.228,13.223,0.06571602]
[1672935688668,10.0,13.227,13.223,0.06571602]
[1672935688880,47.817,13.227,13.223,0.06571602]
[1672935689090,10.0,13.227,13.223,0.06571602]
[1672935689618,10.0,13.228,13.223,0.06571602]
[1672935689817,10.0,13.229,13.223,0.06571602]
[1672935690348,0.06103488,13.23,13.223,0.06571602]
[1672935691712,0.06103488,13.23,13.225,10.0]
[1672935691923,0.06103488,13.23,13.226,15.05]
[1672935692444,0.06103488,13.23,13.227,10.0]
[1672935692661,0.07045567,13.233,13.229,10.0]
[1672935692872,10.0,13.234,13.229,10.0]
[1672935693292,10.0,13.234,13.228,15.01]
[1672935694553,10.0,13.234,13.226,15.08240635]
[1672935695180,10.0,13.234,13.226,0.06240635]
[1672935695806,15.05,13.233,13.226,0.06240635]
[1672935696021,10.0,13.232,13.226,0.06240635]
[1672935697386,47.802,13.232,13.226,0.06240635]
[1672935697592,15.05,13.231,13.226,0.06240635]
[1672935697810,10.0,13.23,13.226,0.06240635]
[1672935699069,15.05,13.228,13.203,56.81]
[1672935699386,15.01,13.223,13.209,50.0]
[1672935699589,15.01,13.223,13.213,15.05]
[1672935699804,10.0,13.222,13.214,10.0]
[1672935700226,25.01,13.223,13.214,10.0]
[1672935700227,25.07644274,13.223,13.214,10.0]
[1672935700436,0.06644274,13.223,13.216,15.01]
[1672935700647,0.06644274,13.223,13.217,10.0]
[1672935702224,0.06644274,13.223,13.216,15.01]
[1672935704429,0.06644274,13.223,13.214,15.05]
[1672935704742,15.05,13.22,13.213,0.00611868]
[1672935704957,15.05,13.218,13.213,0.00611868]
[1672935705160,10.0,13.217,13.213,0.00611868]
[1672935705586,10.0,13.219,13.213,0.00611868]
[1672935705796,10.06704723,13.221,13.214,15.05]
[1672935706006,10.06704723,13.221,13.215,10.0]
[1672935706431,10.06704723,13.221,13.214,15.05]
[1672935707162,10.06704723,13.221,13.213,15.05611868]
[1672935709789,10.06704723,13.221,13.213,0.00611868]
[1672935710527,10.06704723,13.221,13.213,10.00611868]
[1672935711262,45.16,13.233,13.22,45.27]
[1672935711468,45.16,13.233,13.223,44.87]
[1672935711677,10.0,13.232,13.224,10.0]
[1672935712520,10.0,13.232,13.223,0.07075974]
[1672935716198,45.27,13.229,13.223,0.07075974]
[1672935716409,10.0,13.228,13.223,0.07075974]
[1672935716618,47.814,13.228,13.223,0.07075974]
[1672935717144,10.0,13.228,13.223,0.07075974]
[1672935718830,45.27,13.229,13.223,0.07075974]
[1672935719144,0.06425485,13.23,13.223,0.07075974]
[1672935719353,10.06425485,13.23,13.223,0.07075974]
[1672935720192,0.06425485,13.23,13.223,0.07075974]
[1672935720399,10.0,13.229,13.223,0.07075974]
[1672935720820,47.812,13.229,13.223,0.07075974]
[1672935724711,37.812,13.229,13.223,0.07075974]
[1672935725444,37.816,13.227,13.223,0.07075974]
[1672935725861,10.0,13.226,13.223,0.07075974]
[1672935726077,10.0,13.226,13.22,0.06219856]
[1672935727440,10.06603051,13.228,13.22,0.06219856]
[1672935728808,47.87903051,13.228,13.22,0.06219856]
[1672935729229,45.27,13.227,13.22,0.06219856]
[1672935729538,10.0,13.226,13.22,0.06219856]
[1672935730387,47.819,13.226,13.22,0.06219856]
[1672935730599,93.089,13.226,13.22,0.06219856]
[1672935730809,45.27,13.224,13.22,0.00219856]
[1672935731020,10.0,13.223,13.22,0.00219856]
[1672935731229,10.0,13.223,13.213,42.5216]
[1672935731751,47.89557807,13.223,13.213,42.58234127]
[1672935732175,47.89557807,13.223,13.213,0.06074127]
[1672935732382,45.27,13.222,13.213,0.06074127]
[1672935732591,37.835,13.22,13.213,0.06074127]
[1672935732806,10.0,13.219,13.213,0.06074127]
[1672935734392,45.27,13.216,13.213,0.00074127]
[1672935734602,45.27,13.216,13.204,44.94]
[1672935735125,10.0,13.215,13.205,10.0]
[1672935735332,10.06895933,13.215,13.205,10.06115123]
[1672935737853,10.06895933,13.215,13.205,54.93115123]
[1672935738802,0.06895933,13.215,13.205,54.93115123]
[1672935739643,0.06895933,13.215,13.207,45.25]
[1672935739854,0.06895933,13.215,13.208,10.0]
[1672935743846,0.06895933,13.215,13.209,45.25]
[1672935744056,0.06895933,13.215,13.21,10.0]
[1672935745217,0.06895933,13.215,13.211,45.27]
[1672935745428,0.06895933,13.215,13.212,10.0]
[1672935745634,0.06393475,13.218,13.212,10.0]
[1672935748476,0.06393475,13.218,13.21,10.06982982]
[1672935748687,0.06393475,13.218,13.21,0.06982982]
[1672935749000,10.06393475,13.218,13.21,10.06982982]
[1672935749423,0.06393475,13.218,13.21,10.06982982]
[1672935752786,10.06393475,13.218,13.21,10.06982982]
[1672935753100,10.06393475,13.218,13.21,0.06982982]
[1672935753309,10.06393475,13.218,13.21,10.06982982]
[1672935754885,47.90493475,13.218,13.21,10.06982982]
[1672935756569,47.90493475,13.218,13.21,0.06982982]
[1672935757402,22.90493475,13.218,13.21,10.06982982]
[1672935759606,10.0,13.217,13.21,0.06982982]
[1672935759921,93.116,13.217,13.21,0.06982982]
[1672935760127,45.27,13.216,13.21,0.06982982]
[1672935760341,10.0,13.215,13.21,0.06982982]
[1672935760974,47.852,13.215,13.21,0.06982982]
[1672935763292,62.962,13.215,13.21,0.06982982]
[1672935764240,15.11,13.213,13.203,15.05]
[1672935764550,10.0,13.212,13.204,10.0]
[1672935765915,10.0,13.212,13.203,15.11906389]
[1672935766437,10.0,13.21,13.203,0.06906389]
[1672935766964,25.11,13.21,13.203,0.06906389]
[1672935767177,15.11,13.208,13.203,0.06906389]
[1672935767388,10.0,13.207,13.203,0.06906389]
[1672935770545,15.11,13.208,13.203,0.06906389]
[1672935771065,0.06123417,13.21,13.203,15.17906389]
[1672935771484,0.06123417,13.21,13.204,10.0]
[1672935774117,0.00023417,13.21,13.204,25.07]
[1672935774426,0.00023417,13.21,13.206,15.05]
[1672935774643,0.00023417,13.21,13.207,10.0]
[1672935774853,15.11,13.217,13.207,10.0]
[1672935775276,10.0,13.216,13.207,10.06721604]
[1672935775898,15.17148003,13.217,13.207,10.06721604]
[1672935777797,0.06148003,13.217,13.209,10.0]
[1672935784317,0.06148003,13.217,13.212,15.11]
[1672935784525,15.11,13.224,13.214,15.02]
[1672935784835,10.0,13.223,13.215,10.0]
[1672935786310,15.17682238,13.224,13.215,10.0]
[1672935786516,0.06682238,13.224,13.217,15.11]
[1672935786728,0.06682238,13.224,13.218,10.0]
[1672935790720,0.06682238,13.224,13.218,25.05]
[1672935794292,0.00682238,13.224,13.218,25.05]
[1672935795029,0.00682238,13.224,13.22,15.11]
[1672935795344,0.00682238,13.224,13.221,10.0]
[1672935795555,0.06502977,13.227,13.221,10.0]
[1672935795870,0.06022257,13.229,13.221,10.0]
[1672935797971,15.17022257,13.229,13.221,10.0]
[1672935798181,10.0,13.228,13.219,0.06848625]
[1672935798600,15.11,13.225,13.219,0.06848625]
[1672935799023,10.0,13.224,13.219,0.06848625]
[1672935800596,25.11,13.224,13.219,0.06848625]
[1672935802177,0.06899094,13.226,13.219,0.06848625]
[1672935802489,10.06899094,13.226,13.219,0.06848625]
[1672935803226,0.06899094,13.226,13.219,0.06848625]
[1672935803748,0.06899094,13.226,13.222,15.11]
[1672935803961,0.06899094,13.226,13.223,10.0]
[1672935804167,0.06754341,13.229,13.223,10.0]
[1672935805851,15.17754341,13.229,13.221,0.06344002]
[1672935806264,10.0,13.228,13.221,0.06344002]
[1672935809945,15.17754341,13.229,13.221,0.06344002]
[1672935810262,0.06754341,13.229,13.224,15.11]
[1672935810471,0.06754341,13.229,13.225,10.0]
[1672935810679,0.06754341,13.229,13.226,15.05]
[1672935810893,0.07077559,13.232,13.226,15.05]
[1672935811209,0.07077559,13.232,13.227,10.0]
[1672935813520,0.07077559,13.232,13.226,15.05]
[1672935814041,0.07077559,13.232,13.225,10.0]
[1672935814254,0.07077559,13.232,13.227,10.0]
[1672935817619,0.07077559,13.232,13.225,10.0]
[1672935823398,0.07077559,13.232,13.224,15.11105399]
[1672935823601,0.07077559,13.232,13.225,10.0]
[1672935830128,0.07077559,13.232,13.224,15.11105399]
[1672935830859,0.07077559,13.232,13.225,10.0]
[1672935832010,15.11,13.23,13.224,0.06105399]
[1672935832221,10.0,13.229,13.224,0.06105399]
[1672935834122,15.11,13.231,13.224,0.06105399]
[1672935834328,10.0,13.23,13.224,0.06105399]
[1672935834750,15.11,13.229,13.224,0.06105399]
[1672935834958,10.0,13.228,13.224,0.06105399]
[1672935836113,15.11,13.227,13.224,0.06105399]